bitfinex-derivatives/quotes_SOLF0:USTF0_20241127
["timestamp","ask_amount","ask_price","bid_price","bid_amount"]
[1732671267268,2.1686,230.65,230.6,1.3841]
[1732671267767,2.32,230.66,230.6,1.3841]
[1732671267973,2.32,230.7,230.6,18.71280543]
[1732671268168,2.32,230.71,230.6,18.71280543]
[1732671268361,17.32870543,230.79,230.6,18.71280543]
[1732671268362,2.32,230.72,230.6,18.71280543]
[1732671268563,2.32,230.72,230.63,2.1687]
[1732671269167,2.1682,230.68,230.6,18.71280543]
[1732671269374,2.1682,230.68,230.62,2.1688]
[1732671269777,2.1682,230.68,230.6,18.71280543]
[1732671270273,2.1684,230.67,230.6,12.22317622]
[1732671270471,2.32,230.72,230.6,1.3841]
[1732671271080,13.15907622,230.72,230.6,1.3841]
[1732671271275,2.1682,230.69,230.6,1.3841]
[1732671271473,13.15907622,230.72,230.6,1.3841]
[1732671272378,2.1689,230.61,230.57,10.83907622]
[1732671272772,2.1689,230.61,230.55,2.1695]
[1732671275677,2.169,230.6,230.55,2.1695]
[1732671275883,2.32,230.65,230.54,12.24377622]
[1732671276073,2.1693,230.57,230.54,12.24377622]
[1732671276274,2.32,230.65,230.54,1.4047]
[1732671276770,2.1693,230.57,230.54,1.4047]
[1732671277276,2.32,230.65,230.54,1.4047]
[1732671278179,2.32,230.65,230.54,12.24377622]
[1732671278380,2.32,230.66,230.57,10.83907622]
[1732671278983,2.32,230.66,230.54,12.24377622]
[1732671279372,2.1688,230.63,230.54,1.4047]
[1732671279581,2.32,230.66,230.54,1.4047]
[1732671279781,10.83907622,230.61,230.48,12.23277622]
[1732671279976,2.32,230.6,230.45,13.40927622]
[1732671280383,3.6003,230.6,230.45,13.40927622]
[1732671280579,2.1698,230.52,230.46,2.1703]
[1732671280783,2.32,230.54,230.45,2.5702]
[1732671281185,2.17,230.5,230.45,2.5702]
[1732671281880,2.32,230.54,230.45,2.5702]
[1732671282284,2.1701,230.49,230.39,2.1709]
[1732671282486,2.32,230.54,230.37,2.5663]
[1732671283385,2.1702,230.48,230.4,2.1708]
[1732671283889,2.32,230.54,230.4,2.1708]
[1732671283890,2.32,230.54,230.44,2.1705]
[1732671285083,2.1699,230.5,230.44,2.1705]
[1732671287196,2.32,230.53,230.4,19.69423002]
[1732671287398,26.39641048,230.6,230.44,17.37423002]
[1732671287689,2.1696,230.54,230.45,1.3749]
[1732671287895,2.32,230.59,230.45,1.3749]
[1732671288295,2.1699,230.51,230.45,1.3749]
[1732671288710,2.32,230.59,230.45,1.3749]
[1732671288886,2.1697,230.53,230.45,1.3749]
[1732671289494,2.1697,230.53,230.46,2.705]
[1732671289698,2.32,230.59,230.46,5.025]
[1732671290095,2.1694,230.57,230.49,2.1699]
[1732671290294,2.1694,230.57,230.46,5.025]
[1732671290496,2.32,230.59,230.48,17.37423002]
[1732671291297,2.1693,230.57,230.52,2.1697]
[1732671291495,2.1693,230.57,230.48,17.37423002]
[1732671292496,2.32,230.59,230.48,17.37423002]
[1732671293100,2.1693,230.57,230.48,17.37423002]
[1732671293401,2.32,230.59,230.53,2.1696]
[1732671293602,2.1692,230.58,230.53,2.1696]
[1732671294497,2.1695,230.55,230.51,2.1698]
[1732671295201,2.1695,230.55,230.48,17.37423002]
[1732671295703,2.1695,230.55,230.51,2.1698]
[1732671295902,2.1694,230.56,230.48,17.37423002]
[1732671296106,18.73933002,230.68,230.52,17.37423002]
[1732671296305,2.32,230.66,230.58,2.1692]
[1732671296800,2.32,230.66,230.52,19.69423002]
[1732671297005,2.32,230.68,230.52,19.69423002]
[1732671297800,2.1687,230.63,230.52,19.69423002]
[1732671298512,2.1689,230.61,230.52,19.69423002]
[1732671299303,2.1689,230.61,230.56,2.1693]
[1732671299504,2.1689,230.61,230.52,19.69423002]
[1732671300206,2.32,230.68,230.52,19.69423002]
[1732671300401,25.1063498,230.7,230.56,17.37423002]
[1732671300605,25.1063498,230.7,230.64,2.1686]
[1732671300909,25.1063498,230.7,230.61,2.32]
[1732671301409,25.1063498,230.7,230.64,2.1686]
[1732671301904,2.1683,230.68,230.64,2.1686]
[1732671302803,27.2744498,230.7,230.64,2.1686]
[1732671303206,25.1063498,230.7,230.64,2.1686]
[1732671303612,2.1682,230.68,230.64,2.1686]
[1732671303812,25.1063498,230.7,230.64,2.1686]
[1732671304403,2.1683,230.68,230.63,2.1687]
[1732671304704,10.83803009,230.78,230.64,10.83803009]
[1732671304907,3.6409,230.83,230.71,2.1679]
[1732671305115,3.6409,230.83,230.7,10.83803009]
[1732671305409,2.32,230.84,230.73,10.83803009]
[1732671305704,2.32,230.84,230.74,2.32]
[1732671306110,2.1671,230.8,230.74,4.4877]
[1732671306311,301.38196761,230.91,230.74,2.32]
[1732671306312,2.32,230.89,230.74,2.32]
[1732671306902,2.1667,230.85,230.76,2.1674]
[1732671307108,2.32,230.89,230.74,2.32]
[1732671307710,2.1667,230.84,230.76,2.1674]
[1732671307912,2.32,230.89,230.75,2.32]
[1732671308212,2.1671,230.8,230.75,2.32]
[1732671308409,2.32,230.89,230.75,2.32]
[1732671309012,2.1671,230.81,230.75,2.32]
[1732671309413,2.1667,230.85,230.75,2.32]
[1732671309612,2.32,230.89,230.75,2.32]
[1732671310116,2.32,230.89,230.75,19.63918505]
[1732671310314,2.32,230.89,230.8,2.1671]
[1732671310521,300.94926761,230.91,230.8,2.1671]
[1732671310712,300.94926761,230.91,230.75,19.63918505]
[1732671310908,300.94926761,230.91,230.75,2.32]
[1732671311113,2.1666,230.86,230.73,2.32]
[1732671311420,2.32,230.86,230.73,2.32]
[1732671311915,2.1672,230.8,230.73,2.32]
[1732671312113,2.32,230.86,230.74,2.1677]
[1732671312818,2.1674,230.77,230.71,4.952]
[1732671313519,2.1676,230.75,230.71,4.952]
[1732671314210,2.32,230.79,230.64,2.32]
[1732671314412,2.32,230.78,230.65,2.32]
[1732671314615,2.1676,230.75,230.69,2.1681]
[1732671314816,2.32,230.78,230.65,2.32]
[1732671316721,2.32,230.78,230.63,17.31918505]
[1732671317022,2.32,230.78,230.63,2.32]
[1732671319219,2.168,230.71,230.65,2.1684]
[1732671319920,2.1678,230.74,230.64,2.1686]
[1732671320124,2.32,230.78,230.64,2.1686]
[1732671320721,2.32,230.78,230.63,17.31918505]
[1732671321218,2.1678,230.73,230.68,2.1682]
[1732671321421,2.32,230.78,230.63,17.31918505]
[1732671321618,17.31918505,230.84,230.67,17.31918505]
[1732671321815,1.3262,230.85,230.71,2.1679]
[1732671322021,1.3262,230.85,230.68,2.32]
[1732671322022,2.32,230.84,230.68,2.32]
[1732671322223,2.1677,230.74,230.68,2.32]
[1732671322725,2.17123583,230.82,230.68,2.32]
[1732671322919,19.63918505,230.84,230.68,4.4882]
[1732671323527,2.1678,230.73,230.68,4.4882]
[1732671323822,2.32,230.78,230.64,2.1685]
[1732671324128,17.31918505,230.76,230.62,2.5722]
[1732671324323,3.6055,230.75,230.57,17.31918505]
[1732671324521,3.6055,230.75,230.56,2.32]
[1732671324721,17.31918505,230.72,230.53,17.31918505]
[1732671325023,17.31918505,230.72,230.51,1.3838]
[1732671325024,17.31918505,230.72,230.52,2.32]
[1732671325223,2.1689,230.61,230.52,2.32]
[1732671325522,2.32,230.64,230.54,2.1696]
[1732671325724,2.1691,230.59,230.52,2.32]
[1732671325918,2.32,230.64,230.52,2.32]
[1732671326125,2.32,230.64,230.51,1.3838]
[1732671327124,2.32,230.64,230.51,3.5536]
[1732671327426,2.32,230.64,230.51,1.3838]
[1732671328527,2.32,230.64,230.51,12.23092601]
[1732671329132,2.1691,230.59,230.53,2.1696]
[1732671330024,2.169,230.61,230.54,2.1695]
[1732671330228,2.32,230.67,230.54,10.84712601]
[1732671330529,2.32,230.67,230.57,10.84712601]
[1732671332032,1.3576,230.74,230.6,10.84712601]
[1732671332229,3.6776,230.74,230.63,10.84712601]
[1732671332434,2.1681,230.71,230.65,2.1685]
[1732671332726,3.6776,230.74,230.63,10.84712601]
[1732671333127,2.1683,230.68,230.63,10.84712601]
[1732671333328,3.6776,230.74,230.62,2.1687]
[1732671333830,2.1682,230.69,230.63,2.1687]
[1732671334222,2.32,230.74,230.63,10.84712601]
[1732671334434,2.1679,230.72,230.66,2.1684]
[1732671334630,2.32,230.74,230.66,10.84712601]
[1732671335024,2.1678,230.73,230.66,13.01542601]
[1732671335223,2.1678,230.73,230.66,10.84712601]
[1732671335526,2.1678,230.73,230.67,2.1683]
[1732671335726,2.32,230.74,230.66,10.84712601]
[1732671335727,2.1679,230.72,230.66,10.84712601]
[1732671337233,2.168,230.71,230.66,13.01552601]
[1732671337726,2.32,230.74,230.66,10.84712601]
[1732671337934,2.1679,230.72,230.67,2.1683]
[1732671338229,2.32,230.74,230.66,10.84712601]
[1732671338435,2.1682,230.69,230.63,10.84712601]
[1732671338635,2.32,230.74,230.63,10.84712601]
[1732671338833,2.32,230.74,230.61,3.8763]
[1732671339131,2.1681,230.7,230.61,3.8763]
[1732671339331,10.84712601,230.73,230.61,3.8763]
[1732671340335,2.1685,230.66,230.61,3.8763]
[1732671340737,10.84712601,230.73,230.61,3.8763]
[1732671341536,2.1684,230.67,230.61,6.0452]
[1732671342336,10.84712601,230.73,230.61,6.0452]
[1732671342533,2.1685,230.66,230.61,6.0452]
[1732671343538,2.32,230.74,230.61,6.0452]
[1732671343539,2.32,230.74,230.61,3.8763]
[1732671344342,2.1684,230.67,230.61,3.8763]
[1732671344542,2.32,230.71,230.61,3.8763]
[1732671345840,2.1681,230.7,230.65,2.1685]
[1732671347040,2.1682,230.69,230.63,2.1686]
[1732671347337,2.1682,230.69,230.61,3.8763]
[1732671347538,2.1682,230.69,230.64,2.1686]
[1732671349946,2.1682,230.69,230.65,2.1685]
[1732671350536,2.32,230.73,230.63,13.16712601]
[1732671350741,25.10002248,230.75,230.66,10.84712601]
[1732671351041,2.32,230.8,230.69,10.84712601]
[1732671351242,10.84712601,230.85,230.74,2.1677]
[1732671351440,10.84712601,230.85,230.7,3.9616]
[1732671351441,2.32,230.84,230.7,3.9616]
[1732671351744,2.32,230.84,230.73,2.1678]
[1732671352343,2.1673,230.79,230.74,2.1677]
[1732671352535,2.32,230.84,230.7,3.9616]
[1732671354238,2.1672,230.79,230.7,3.9616]
[1732671355246,2.1672,230.79,230.73,2.1678]
[1732671355643,2.32,230.84,230.7,3.9616]
[1732671356046,2.1675,230.77,230.72,2.1679]
[1732671356946,2.1671,230.81,230.72,2.1679]
[1732671357145,10.84712601,230.82,230.7,3.9616]
[1732671357446,2.1681,230.7,230.63,13.16712601]
[1732671357649,0.2618,230.87,230.63,2.1686]
[1732671357650,13.16712601,230.76,230.63,2.1686]
[1732671357846,2.32,230.75,230.63,2.1686]
[1732671358240,2.1681,230.7,230.64,2.1686]
[1732671358644,2.1681,230.7,230.62,3.6402]
[1732671358949,2.32,230.75,230.63,10.84712601]
[1732671358950,2.168,230.71,230.63,10.84712601]
[1732671359848,2.168,230.71,230.66,2.1683]
[1732671360448,2.1679,230.73,230.63,10.84712601]
[1732671360648,2.32,230.79,230.66,10.84712601]
[1732671360846,10.84712601,230.85,230.69,10.84712601]
[1732671361048,2.32,230.84,230.7,1.2289]
[1732671361544,2.32,230.84,230.73,2.1678]
[1732671361850,2.32,230.84,230.72,10.84712601]
[1732671362351,2.1673,230.79,230.72,13.01492601]
[1732671362551,2.1673,230.79,230.72,10.84712601]
[1732671363149,2.1669,230.83,230.72,10.84712601]
[1732671363448,2.32,230.88,230.75,10.84712601]
[1732671363645,2.32,230.88,230.76,2.32]
[1732671364152,13.16712601,230.88,230.72,13.16712601]
[1732671364451,10.84712601,230.85,230.72,2.32]
[1732671364642,10.84712601,230.85,230.71,1.3502]
[1732671365654,13.16712601,230.88,230.72,10.84712601]
[1732671365849,309.46440364,230.91,230.75,10.84712601]
[1732671366047,303.11586761,230.86,230.78,10.84712601]
[1732671366248,300.94926761,230.86,230.78,10.84712601]
[1732671367857,300.94926761,230.86,230.79,2.1671]
[1732671368354,300.94926761,230.86,230.82,2.1669]
[1732671370652,300.94926761,230.86,230.82,2.487]
[1732671371355,300.94926761,230.86,230.82,4.6538]
[1732671372556,300.94926761,230.86,230.83,2.1668]
[1732671373957,2.1665,230.87,230.83,2.1668]
[1732671374346,1.3556,230.96,230.86,2.1665]
[1732671374552,2.32,230.95,230.84,10.84712601]
[1732671374754,0.25641,230.97,230.87,10.84712601]
[1732671374955,0.25641,230.97,230.9,10.84712601]
[1732671375858,300.94926761,231.08,230.96,10.84712601]
[1732671376062,303.26926761,231.08,230.99,10.84712601]
[1732671376358,300.78207763,231.05,230.99,13.01242601]
[1732671376563,300.78207763,231.05,230.99,10.84712601]
[1732671376752,298.61727763,231.05,231.01,2.1651]
[1732671376953,298.61727763,231.05,230.99,10.84712601]
[1732671377856,2.1649,231.04,230.99,10.84712601]
[1732671378169,298.61727763,231.05,230.97,1.3685]
[1732671378463,298.61727763,231.05,230.94,2.32]
[1732671378464,10.84712601,231.07,230.94,2.32]
[1732671378668,10.84712601,231.07,230.93,10.84712601]
[1732671381064,0.1012,231.08,230.93,10.84712601]
[1732671381257,0.1012,231.08,230.96,10.84712601]
[1732671381661,12.96405702,231.07,230.93,10.84712601]
[1732671381865,2.1654,230.99,230.93,10.84712601]
[1732671382159,2.3,231.04,230.93,10.84712601]
[1732671382763,2.3,231.04,230.96,10.84712601]
[1732671383463,2.3,231.11,230.99,10.84712601]
[1732671383770,2.1645,231.08,231.02,13.01212601]
[1732671384264,2.3,231.11,231.02,10.84712601]
[1732671384863,2.3,231.11,231.0,2.1652]
[1732671386064,2.1647,231.07,231.01,2.1651]
[1732671386264,10.84712601,231.16,231.02,10.84712601]
[1732671386265,2.3,231.12,231.02,10.84712601]
[1732671386865,2.1646,231.07,231.02,10.84712601]
[1732671387662,2.3,231.12,231.01,1.2953]
[1732671388463,2.3,231.12,230.96,13.14712601]
[1732671389461,2.3,231.12,230.96,10.84712601]
[1732671390971,10.84712601,231.1,230.96,10.84712601]
[1732671391572,2.1653,231.0,230.96,10.84712601]
[1732671395977,2.1651,231.02,230.96,13.01262601]
[1732671396179,2.3,231.06,230.99,10.84712601]
[1732671396576,0.1003,231.12,230.99,10.84712601]
[1732671396777,39.21878513,231.13,231.02,10.84712601]
[1732671396983,2.3,231.11,231.02,10.84712601]
[1732671398482,2.3,231.11,231.02,13.01222601]
[1732671398483,2.1646,231.07,231.02,13.01222601]
[1732671399785,2.1645,231.09,231.02,10.84712601]
[1732671400480,41.51878513,231.13,231.01,2.5673]
[1732671400983,52.36591114,231.13,231.01,2.5673]
[1732671401381,2.165,231.03,231.01,2.5673]
[1732671401782,52.36591114,231.13,231.01,2.5673]
[1732671402684,2.1644,231.1,231.01,2.5673]
[1732671402889,52.36591114,231.13,231.01,2.5673]
[1732671403291,52.36591114,231.13,230.98,1.2504]
[1732671404889,52.36591114,231.13,230.96,10.84712601]
[1732671406386,2.1652,231.01,230.96,10.84712601]
[1732671407286,39.21878513,231.13,230.99,10.84712601]
[1732671407487,39.21878513,231.13,231.04,10.84712601]
[1732671407884,2.1645,231.09,231.03,2.1649]
[1732671408091,39.21878513,231.13,231.02,2.3]
[1732671408592,41.51878513,231.13,231.02,2.3]
[1732671409194,41.51878513,231.13,231.03,2.1649]
[1732671409487,41.51878513,231.13,231.02,2.3]
[1732671409795,2.1643,231.1,231.04,10.84712601]
[1732671410793,2.1644,231.09,231.04,13.01192601]
[1732671412194,41.38288513,231.13,231.08,2.1645]
[1732671412495,39.21878513,231.13,231.07,10.84712601]
[1732671412691,39.21878513,231.13,231.07,13.14712601]
[1732671413295,39.21878513,231.13,231.1,10.84712601]
[1732671414188,39.21878513,231.13,231.07,13.14712601]
[1732671414695,2.1641,231.12,231.07,13.14712601]
[1732671414897,39.21878513,231.13,231.07,13.14712601]
[1732671416393,2.1642,231.11,231.07,13.14712601]
[1732671417205,39.21878513,231.13,231.07,10.84712601]
[1732671417391,2.1643,231.1,231.07,10.84712601]
[1732671419299,39.21878513,231.13,231.07,10.84712601]
[1732671419300,2.1642,231.11,231.07,10.84712601]
[1732671420199,2.1647,231.06,231.04,10.84712601]
[1732671420403,39.21878513,231.13,231.04,10.84712601]
[1732671420605,39.21878513,231.13,231.07,10.84712601]
[1732671420903,41.38288513,231.13,231.09,2.1644]
[1732671421305,39.21878513,231.13,231.09,2.1644]
[1732671421907,1.437,231.23,231.1,10.84712601]
[1732671422204,299.0893162,231.25,231.14,10.84712601]
[1732671422395,2.1635,231.2,231.17,10.84712601]
[1732671422594,299.0893162,231.25,231.17,10.84712601]
[1732671422808,299.0893162,231.25,231.12,2.164]
[1732671422809,299.0893162,231.25,231.14,10.84712601]
[1732671423104,2.3,231.24,231.14,10.84712601]
[1732671424200,299.0893162,231.25,231.17,10.84712601]
[1732671425106,2.1631,231.23,231.17,10.84712601]
[1732671425400,299.0893162,231.25,231.2,10.84712601]
[1732671425604,2.1631,231.23,231.2,10.84712601]
[1732671425807,299.0893162,231.25,231.2,10.84712601]
[1732671426000,299.0893162,231.25,231.16,1.3094]
[1732671426001,299.0893162,231.25,231.23,10.84712601]
[1732671427096,297.0806162,231.25,231.23,10.84712601]
[1732671427296,2.1624,231.3,231.24,2.163]
[1732671427496,2.1624,231.3,231.23,10.84712601]
[1732671427707,360.93848831,231.33,231.23,10.84712601]
[1732671427898,2.1626,231.28,231.23,10.84712601]
[1732671428305,2.1628,231.27,231.23,10.84712601]
[1732671429006,2.1626,231.29,231.23,13.01012601]
[1732671429203,2.1626,231.29,231.23,10.84712601]
[1732671431703,2.1626,231.29,231.24,2.163]
[1732671431909,2.1624,231.31,231.23,10.84712601]
[1732671432111,10.84712601,231.33,231.18,10.84712601]
[1732671432406,2.1629,231.26,231.19,2.1634]
[1732671432606,10.84712601,231.33,231.19,2.1634]
[1732671432808,2.3,231.32,231.19,2.1634]
[1732671432999,2.1626,231.29,231.19,2.1634]
[1732671433206,2.3,231.32,231.19,2.1634]
[1732671433603,2.3,231.32,231.2,2.1633]
[1732671434110,2.3,231.32,231.23,2.163]
[1732671434309,0.52063,231.35,231.23,2.3]
[1732671434503,2.1625,231.3,231.23,2.3]
[1732671434902,0.52063,231.35,231.25,2.1629]
[1732671435102,2.1624,231.31,231.25,2.1629]
[1732671435606,0.52063,231.35,231.24,10.84712601]
[1732671435807,0.52063,231.35,231.27,10.84712601]
[1732671436310,0.52063,231.35,231.28,1.2616]
[1732671436612,0.52063,231.35,231.29,2.3]
[1732671436805,2.1622,231.33,231.29,2.3]
[1732671437005,0.52063,231.35,231.29,2.3]
[1732671437208,0.52063,231.35,231.3,10.84712601]
[1732671437614,0.52063,231.35,231.33,10.84712601]
[1732671437818,0.52063,231.35,231.33,13.00932601]
[1732671438007,355.78472348,231.51,231.34,10.84712601]
[1732671438207,360.93848831,231.58,231.5,10.84712601]
[1732671439115,360.93848831,231.58,231.47,10.84712601]
[1732671440010,2.1601,231.56,231.47,10.84712601]
[1732671440209,360.93848831,231.58,231.47,10.84712601]
[1732671441009,2.1599,231.57,231.48,2.1607]
[1732671442910,360.93848831,231.58,231.47,10.84712601]
[1732671443611,2.1603,231.53,231.47,10.84712601]
[1732671444515,1.3066,231.56,231.47,10.84712601]
[1732671444813,2.1602,231.55,231.48,2.1607]
[1732671446116,1.2789,231.57,231.5,10.84712601]
[1732671446321,2.3,231.61,231.5,10.84712601]
[1732671447218,2.3,231.61,231.49,2.3]
[1732671447219,2.3,231.61,231.53,10.84712601]
[1732671447422,2.1598,231.58,231.5,10.84712601]
[1732671447624,2.3,231.61,231.5,10.84712601]
[1732671447826,2.1599,231.58,231.51,2.1604]
[1732671448025,2.1599,231.58,231.5,10.84712601]
[1732671448228,2.3,231.61,231.5,10.84712601]
[1732671448428,2.1597,231.59,231.53,2.1603]
[1732671448823,2.3,231.61,231.5,10.84712601]
[1732671449026,2.1599,231.57,231.51,2.1604]
[1732671449225,2.1599,231.57,231.5,10.84712601]
[1732671449821,2.1598,231.58,231.52,2.1604]
[1732671450227,2.1598,231.59,231.52,2.1603]
[1732671450423,2.3,231.61,231.5,10.84712601]
[1732671450928,2.1599,231.58,231.5,13.00762601]
[1732671451234,2.3,231.61,231.5,10.84712601]
[1732671453225,2.1599,231.58,231.52,2.1604]
[1732671456030,2.3,231.61,231.5,10.84712601]
[1732671456225,2.3,231.61,231.47,13.14712601]
[1732671456533,2.1599,231.57,231.48,2.1608]
[1732671456734,2.3,231.61,231.48,2.1608]
[1732671457125,2.1602,231.55,231.48,2.1608]
[1732671457825,2.1602,231.55,231.49,2.1607]
[1732671458231,2.16,231.57,231.51,2.1605]
[1732671458535,2.3,231.61,231.51,2.1605]
[1732671458835,2.1601,231.55,231.5,10.84712601]
[1732671459035,2.3,231.61,231.5,10.84712601]
[1732671462336,2.1602,231.54,231.5,10.84712601]
[1732671465440,2.3,231.61,231.5,10.84712601]
[1732671465441,2.1603,231.53,231.5,10.84712601]
[1732671466535,2.1605,231.51,231.47,10.84712601]
[1732671466740,13.14712601,231.61,231.47,10.84712601]
[1732671467841,13.14712601,231.61,231.47,13.00792601]
[1732671468039,2.3,231.61,231.5,10.84712601]
[1732671468239,2.3,231.61,231.47,10.84712601]
[1732671468543,13.14712601,231.61,231.47,10.84712601]
[1732671469244,2.1605,231.51,231.47,10.84712601]
[1732671470034,2.1605,231.51,231.46,2.1609]
[1732671470035,2.3,231.54,231.44,10.84712601]
[1732671470334,306.44652089,231.61,231.44,10.84712601]
[1732671470335,3.5887,231.53,231.44,10.84712601]
[1732671470540,2.161,231.46,231.41,10.84712601]
[1732671470739,3.5887,231.53,231.41,10.84712601]
[1732671470940,10.84712601,231.52,231.38,13.14712601]
[1732671471139,2.1608,231.48,231.38,13.14712601]
[1732671471444,2.3,231.47,231.31,2.3]
[1732671471744,2.1618,231.37,231.33,10.84712601]
[1732671471944,3.5659,231.46,231.24,14.74280026]
[1732671471945,14.41302601,231.46,231.27,2.3]
[1732671472145,14.41302601,231.46,231.31,10.84712601]
[1732671473243,2.1618,231.38,231.31,13.00952601]
[1732671474339,2.1618,231.37,231.31,13.00952601]
[1732671477044,14.41302601,231.46,231.31,10.84712601]
[1732671477347,2.1621,231.34,231.31,10.84712601]
[1732671477643,2.3,231.4,231.31,10.84712601]
[1732671477844,2.162,231.35,231.31,10.84712601]
[1732671479045,2.3,231.4,231.31,10.84712601]
[1732671479242,2.3,231.4,231.28,10.84712601]
[1732671479647,1.2403,231.39,231.28,10.84712601]
[1732671480449,2.1624,231.33,231.28,10.84712601]
[1732671480845,1.2403,231.39,231.28,10.84712601]
[1732671481046,2.1626,231.3,231.25,12.12162601]
[1732671481249,1.2403,231.39,231.25,10.84712601]
[1732671481653,2.1622,231.35,231.25,13.01012601]
[1732671481850,1.2403,231.39,231.25,13.01012601]
[1732671482149,2.1622,231.35,231.25,13.01012601]
[1732671482342,1.2403,231.39,231.28,10.84712601]
[1732671482544,1.2403,231.39,231.31,10.84712601]
[1732671482848,2.1621,231.36,231.31,10.84712601]
[1732671483045,1.2403,231.39,231.31,10.84712601]
[1732671483250,2.3,231.41,231.31,10.84712601]
[1732671483443,2.3,231.43,231.34,10.84712601]
[1732671484152,2.3,231.43,231.31,10.84712601]
[1732671484355,15.31878512,231.43,231.28,13.14712601]
[1732671484653,15.31878512,231.43,231.28,15.30992601]
[1732671485055,15.31878512,231.43,231.28,13.14712601]
[1732671485456,2.1622,231.35,231.3,2.1626]
[1732671486054,2.1622,231.35,231.31,10.84712601]
[1732671486557,2.3,231.43,231.34,2.1622]
[1732671486761,2.3,231.43,231.31,10.84712601]
[1732671487053,2.3,231.43,231.34,10.84712601]
[1732671487254,2.3,231.43,231.35,2.1621]
[1732671487958,2.3,231.43,231.34,10.84712601]
[1732671488459,2.1618,231.39,231.34,10.84712601]
[1732671489057,2.1619,231.38,231.34,10.84712601]
[1732671489255,2.1619,231.38,231.32,2.1624]
[1732671489559,2.3,231.43,231.31,10.84712601]
[1732671490051,15.3553545,231.43,231.28,13.14712601]
[1732671490559,2.1621,231.36,231.3,2.1626]
[1732671490755,15.32008344,231.43,231.28,13.14712601]
[1732671490955,15.32008344,231.43,231.3,2.1626]
[1732671491553,2.1622,231.35,231.3,2.1626]
[1732671491950,2.1625,231.32,231.28,10.84712601]
[1732671492156,2.3,231.36,231.28,10.84712601]
[1732671492952,1.3233,231.45,231.31,10.84712601]
[1732671493158,2.3,231.44,231.34,10.84712601]
[1732671493358,2.1617,231.4,231.34,13.00932601]
[1732671493765,1.3233,231.45,231.34,10.84712601]
[1732671493958,2.3,231.43,231.34,10.84712601]
[1732671495061,2.1618,231.39,231.34,10.84712601]
[1732671495262,2.3,231.43,231.34,10.84712601]
[1732671495763,1.3233,231.45,231.34,10.84712601]
[1732671496166,2.1618,231.4,231.34,13.00932601]
[1732671496759,2.1618,231.39,231.34,13.00932601]
[1732671498059,2.1616,231.41,231.34,10.84712601]
[1732671498765,2.1616,231.41,231.35,2.1621]
[1732671499367,2.1617,231.4,231.35,2.1621]
[1732671502772,2.3,231.47,231.37,10.84712601]
[1732671503070,301.31927321,231.48,231.43,13.00842601]
[1732671503270,299.15837321,231.48,231.43,10.84712601]
[1732671503873,2.161,231.48,231.43,13.00852601]
[1732671504364,3.5612,231.54,231.43,10.84712601]
[1732671504870,3.5612,231.54,231.44,2.1613]
[1732671504871,2.1609,231.49,231.44,2.1613]
[1732671506070,3.5612,231.54,231.43,10.84712601]
[1732671506270,2.1607,231.51,231.43,10.84712601]
[1732671506470,2.1607,231.51,231.46,10.84712601]
[1732671506967,2.3,231.56,231.46,10.84712601]
[1732671507473,2.1607,231.51,231.46,10.84712601]
[1732671507868,2.1607,231.51,231.46,13.00822601]
[1732671508669,299.57870287,231.67,231.49,10.84712601]
[1732671508864,10.84712601,231.68,231.53,10.84712601]
[1732671509069,10.84712601,231.68,231.54,2.3]
[1732671509266,2.1597,231.62,231.53,13.00752601]
[1732671509471,10.84712601,231.65,231.53,2.3]
[1732671509670,2.1599,231.6,231.53,2.3]
[1732671509870,2.3,231.64,231.53,2.3]
[1732671511372,2.1597,231.62,231.54,2.1604]
[1732671511573,2.3,231.64,231.51,10.84712601]
[1732671511876,2.1598,231.6,231.53,2.1605]
[1732671512274,2.1602,231.56,231.48,13.00802601]